lending/lending_fUSD_20260124
["ID","MTS","AMOUNT","RATE_DAILY","PERIOD"]
[403290130,1769289034413,-18140.15874323,0.00016462,2]
[403290132,1769289034427,-152.0,0.00016506,4]
[403290133,1769289034436,-1000.0,0.00016515,2]
[403290134,1769289034446,-574.16,0.00016585,2]
[403290136,1769289034457,-1000.0,0.00016585,2]
[403290137,1769289034466,-4721.89465159,0.00016597,2]
[403290138,1769289034476,-510.0,0.00016616,2]
[403290139,1769289034485,-500.0,0.00016616,2]
[403290141,1769289034495,-167.31,0.00016639,2]
[403290142,1769289034505,-458.02499836,0.0001673,2]
[403290143,1769289034515,-18140.15874323,0.0001675,2]
[403290145,1769289034524,-4721.89465159,0.00016858,2]
[403290146,1769289034534,-574.21,0.00016859,2]
[403290147,1769289034545,-166.66,0.0001694,2]
[403290149,1769289034554,-250.0,0.00017,2]
[403290150,1769289034564,-18140.15874323,0.00017037,2]
[403290151,1769289034573,-1600.0,0.00017094,2]
[403290153,1769289034583,-500.0,0.00017099,2]
[403290154,1769289034593,-500.0,0.00017099,2]
[403290155,1769289034603,-151.0,0.00017099,2]
[403290157,1769289034615,-151.0,0.00017099,2]
[403290158,1769289034624,-151.0,0.00017099,2]
[403290159,1769289034634,-500.0,0.00017099,2]
[403290161,1769289034643,-151.0,0.00017099,2]
[403290162,1769289034652,-500.0,0.00017099,2]
[403290163,1769289034662,-151.0,0.00017099,2]
[403290164,1769289034671,-500.0,0.00017099,2]
[403290166,1769289034681,-151.0,0.00017099,2]
[403290167,1769289034691,-500.0,0.00017099,2]
[403290168,1769289034701,-151.0,0.00017099,2]
[403290170,1769289034710,-500.0,0.00017099,2]
[403290171,1769289034720,-151.0,0.00017099,2]
[403290172,1769289034730,-500.0,0.00017099,2]
[403290174,1769289034740,-151.0,0.00017099,2]
[403290175,1769289034749,-500.0,0.00017099,2]
[403290176,1769289034759,-151.0,0.00017099,2]
[403290177,1769289034768,-500.0,0.00017099,2]
[403290179,1769289034778,-151.0,0.00017099,2]
[403290180,1769289034788,-151.0,0.00017099,2]
[403290181,1769289034798,-500.0,0.00017099,2]
[403290183,1769289034808,-500.0,0.00017099,2]
[403290184,1769289034818,-500.0,0.00017099,2]
[403290185,1769289034827,-1000.0,0.00017112,2]
[403290186,1769289034837,-4721.89465159,0.00017118,2]
[403290187,1769289034846,-1000.0,0.0001726,2]
[403290189,1769289034856,-18140.15874323,0.00017325,2]
[403290190,1769289034866,-4721.89465159,0.00017379,2]
[403290191,1769289034876,-234.22420722,0.00017406,2]
[403290192,1769289034886,-1000.0,0.00017534,2]
[403290193,1769289034896,-166.66,0.00017562,2]
[403290195,1769289034905,-567.0,0.0001758,2]
[403290196,1769289034915,-2442.0,0.0001758,2]
[403290197,1769289034926,-18140.15874323,0.00017612,2]
[403290199,1769289034935,-4721.89465159,0.00017639,2]
[403290200,1769289034946,-152.0,0.00017666,5]
[403290201,1769289034958,-1104.0,0.000177,2]
[403290202,1769289034967,-1000.0,0.00017709,2]
[403290204,1769289034977,-168.0,0.00017731,2]
[403290205,1769289034987,-167.31,0.00017749,2]
[403290206,1769289035005,-168.0,0.00017749,2]
[403290208,1769289035017,-1000.0,0.00017808,2]
[403290209,1769289035027,-400.0,0.00017811,2]
[403290210,1769289035037,-528.0,0.00017824,2]
[403290212,1769289035046,-168.0,0.00017825,2]
[403290213,1769289035057,-2432.44498612,0.0001783,2]
[403290214,1769289035067,-168.0,0.00017868,2]
[403290216,1769289035076,-272.05893313,0.00017887,2]
[403290217,1769289035086,-368.1018,0.00017887,2]
[403290218,1769289035096,-182.94414286,0.000179,2]
[403290219,1769289035105,-4721.89465159,0.000179,2]
[403290221,1769289035115,-458.02499836,0.000179,2]
[403290222,1769289035125,-6145.45348338,0.000179,2]
[403290223,1769289035134,-3550.68639902,0.000179,2]
[403290225,1769289035145,-783.05032938,0.000179,2]
[403290226,1769289035154,-18140.15874323,0.000179,2]
[403290227,1769289035164,-2910.0,0.000179,2]
[403290229,1769289035174,-584.0,0.00017957,2]
[403290230,1769289035184,-150.0,0.00017973,2]
[403290231,1769289035197,-221.92741599,0.00017982,2]
[403290233,1769289035209,-1086.97058608,0.0001799,2]
[403290234,1769289035220,-1086.97058608,0.0001799,2]
[403290235,1769289035234,-1086.97058608,0.0001799,2]
[403290237,1769289035244,-500.0,0.00017996,2]
[403290238,1769289035254,-151.0,0.00017997,2]
[403290239,1769289035264,-290.90289667,0.00017999,2]
[403290240,1769289035275,-500.0,0.00017999,2]
[403290242,1769289035285,-500.0,0.00017999,2]
[403290243,1769289035295,-510.38598485,0.00017999,2]
[403290245,1769289035306,-300.0,0.00017999,2]
[403290246,1769289035317,-300.0,0.00017999,2]
[403290247,1769289035327,-576.20605499,0.00017999,2]
[403290248,1769289035337,-300.0,0.00017999,2]
[403290249,1769289035346,-500.0,0.00017999,2]
[403290251,1769289035356,-500.0,0.00017999,2]
[403290252,1769289035366,-500.0,0.00017999,2]
[403290253,1769289035375,-500.0,0.00017999,2]
[403290254,1769289035385,-500.0,0.00017999,2]
[403290256,1769289035398,-475.15139412,0.00017999,2]
[403290257,1769289035408,-300.0,0.00017999,2]
[403290258,1769289035419,-300.0,0.00017999,2]
[403290260,1769289035437,-300.0,0.00017999,2]
[403290261,1769289035448,-666.0,0.00017999,2]
[403290262,1769289035462,-500.0,0.00017999,2]
[403290263,1769289035473,-253.26,0.00017999,2]
[403290265,1769289035491,-150.0,0.00017999,2]
[403290266,1769289035511,-150.0,0.00017999,2]
[403290267,1769289035526,-300.0,0.00017999,2]
[403290268,1769289035537,-486.66435485,0.00017999,2]
[403290270,1769289035547,-377355.18007745,0.00018,2]
[403290272,1769289035598,-18341.1777839,0.00018,2]
[403290273,1769289035611,-252.78751205,0.00018,2]
[403290326,1769289038312,-151.0,0.0001567,2]
[403290328,1769289038326,-3203.35483825,0.0001758,2]
[403290343,1769289038405,-1146.58616103,0.0001758,2]
[403290351,1769289038467,-480.05900072,0.0001758,2]
[403290353,1769289038480,-28633.4596867,0.00018,2]
[403290521,1769289040331,-238.38777319,0.00017873,2]
[403290523,1769289040341,-18932.18299849,0.00018,2]
[403290530,1769289040397,-3063.35789132,0.00018,2]
[403290532,1769289040409,-9697.57715935,0.00018,2]
[403290534,1769289040419,-635.84160929,0.00018,2]
[403290536,1769289040430,-2930721.67274979,0.00018,2]
[403290538,1769289040442,-687.66530757,0.00018,2]
[403290545,1769289040495,-11819.20088292,0.00018,2]
[403290973,1769289044520,-238.38777315,0.00017878,2]
[403290975,1769289044529,-11094.08137015,0.00018,2]
[403290997,1769289044713,-3686.54217826,0.00018,2]
[403290999,1769289044726,-551.16170028,0.00018,2]
[403291140,1769289046137,-20388.23379703,0.00018,2]
[403291142,1769289046147,-30231.5080239,0.00018,2]
[403291162,1769289046344,-2800.0,0.00018,2]
[403291164,1769289046356,-149661.53062633,0.00018,2]
[403294816,1769289187510,14063.494129,7.945e-05,2]
[403295050,1769290233165,-205.6036803,0.00015187,2]
[403295051,1769290233174,-300.0,0.00015286,2]
[403295052,1769290233183,-500.0,0.00015287,2]
[403295053,1769290233192,-500.0,0.00015287,2]
[403295054,1769290233202,-500.0,0.00015287,2]
[403295055,1769290233211,-500.0,0.00015287,2]
[403295056,1769290233220,-500.0,0.00015287,2]
[403295057,1769290233229,-500.0,0.00015287,2]
[403295058,1769290233239,-500.0,0.00015287,2]
[403295059,1769290233248,-500.0,0.00015287,2]
[403295060,1769290233258,-500.0,0.00015287,2]
[403295061,1769290233267,-500.0,0.00015287,2]
[403295062,1769290233275,-261.95445823,0.00015287,2]
[403295063,1769290233284,-500.0,0.00015287,2]
[403295064,1769290233294,-500.0,0.00015287,2]
[403295065,1769290233303,-500.0,0.00015287,2]
[403295066,1769290233312,-437.87358604,0.00015287,2]
[403295067,1769290233322,-500.0,0.00015287,2]
[403295068,1769290233335,-11935.60148181,0.00015288,2]
[403295069,1769290233462,-1626.34538748,0.00015288,2]
[403295070,1769290233515,-19687.08103071,0.00015288,2]
[403295071,1769290233525,-1000.0,0.00015288,2]
[403295072,1769290233534,-2500.0,0.00015288,2]
[403295073,1769290233544,-166.66666668,0.0001587,2]
[403295074,1769290233553,-151.0,0.00015953,2]
[403295075,1769290233562,-151.0,0.00015954,2]
[403295076,1769290233571,-151.0,0.0001596,2]
[403295077,1769290233580,-151.0,0.00015977,2]
[403295078,1769290233590,-1011.90195741,0.000162,5]
[403295079,1769290233599,-1000.0,0.00016276,2]
[403295080,1769290233608,-392.76,0.00016282,2]
[403295081,1769290233621,-200.0,0.00016303,2]
[403295082,1769290233630,-4283.46508856,0.00016309,2]
[403295083,1769290233701,-585.03852271,0.00016309,2]
[403295084,1769290233712,-13704.57687553,0.00016309,2]
[403295178,1769290239222,-158.0,0.00014711,2]
[403295180,1769290239232,-205.6036803,0.00016256,2]
[403295182,1769290239241,-6914.7495132,0.00016309,2]
[403295184,1769290239251,-500.0,0.00016356,2]
[403295186,1769290239260,-250.0,0.00016417,2]
[403295188,1769290239269,-500.0,0.00016438,2]
[403295190,1769290239278,-500.0,0.00016438,2]
[403295191,1769290239287,-500.0,0.00016438,2]
[403295193,1769290239297,-500.0,0.00016438,2]
[403295195,1769290239306,-500.0,0.00016438,2]
[403295197,1769290239316,-500.0,0.00016438,2]
[403295199,1769290239325,-500.0,0.00016438,2]
[403295201,1769290239334,-500.0,0.00016438,2]
[403295203,1769290239344,-500.0,0.00016438,2]
[403295205,1769290239353,-500.0,0.00016438,2]
[403295207,1769290239362,-500.0,0.00016438,2]
[403295208,1769290239376,-500.0,0.00016438,2]
[403295210,1769290239386,-500.0,0.00016438,2]
[403295212,1769290239395,-500.0,0.00016438,2]
[403295214,1769290239404,-500.0,0.00016438,2]
[403295216,1769290239414,-500.0,0.00016438,2]
[403295218,1769290239423,-352.40824392,0.00016438,2]
[403295220,1769290239433,-152.72386715,0.00016438,2]
[403295226,1769290239477,-347.27613285,0.00016438,2]
[403295228,1769290239487,-500.0,0.00016438,2]
[403295230,1769290239497,-500.0,0.00016438,2]
[403295232,1769290239506,-500.0,0.00016438,2]
[403295234,1769290239515,-500.0,0.00016438,2]
[403295236,1769290239524,-500.0,0.00016438,2]
[403295238,1769290239534,-89.7238672,0.00016438,2]
[403295240,1769290239545,-300.0,0.00016438,2]
[403295244,1769290239578,-110.2761328,0.00016438,2]
[403295246,1769290239588,-205.06025049,0.00016705,2]
[403295248,1769290239597,-165.07,0.00016712,2]
[403295250,1769290239607,-200.0,0.0001676,2]
[403295252,1769290239617,-166.66666666,0.00016885,2]
[403295254,1769290239630,-157.18717769,0.000169,2]
[403295256,1769290239641,-23682.3837865,0.000169,2]
[403295258,1769290239652,-3218.40802613,0.000169,2]
[403295374,1769290240770,-151.0,0.0001596,2]
[403295376,1769290240780,-742.24877447,0.000169,2]
[403295381,1769290240818,-1446.72504164,0.000169,2]
[403295852,1769290245457,-1036.94153083,0.000169,2]
[403295985,1769290246866,-500.0,0.000169,2]
[403296005,1769290247060,-1999.32,0.000169,2]
[403297264,1769290519391,-650.0,0.00014884,2]
[403297288,1769291287611,500.0,0.000122,2]
[403297289,1769291289520,500.0,0.000122,2]
[403297290,1769291290557,500.0,0.000122,2]
[403297291,1769291293923,414.92649477,0.000122,2]
[403297292,1769291294946,500.0,0.000122,2]
[403297293,1769291346135,500.0,0.000122,2]
[403297294,1769291351932,300.0,0.000125,2]
[403297295,1769291369870,-987.26,0.00013745,2]
[403297296,1769291369891,-191.7410868,0.00013756,2]
[403297297,1769291369912,-600.0,0.00013769,2]
[403297298,1769291369932,-314.80722769,0.00013769,2]
[403297299,1769291369953,-207.33,0.00013782,2]
[403297300,1769291369975,-1371.95,0.00013852,2]
[403297301,1769291369995,-250.0,0.00013853,2]
[403297302,1769291370017,-300.0,0.00013858,2]
[403297303,1769291370038,-1200.0,0.00013859,2]
[403297304,1769291370059,-300.0,0.00013859,2]
[403297305,1769291370083,-500.0,0.00013859,2]
[403297306,1769291370107,-195.77271758,0.00013859,2]
[403297307,1769291370129,-500.0,0.00013859,2]
[403297308,1769291370152,-500.0,0.00013859,2]
[403297309,1769291370174,-500.0,0.00013859,2]
[403297310,1769291370197,-500.0,0.00013859,2]
[403297311,1769291370220,-318.94109097,0.00013859,2]
[403297312,1769291370243,-500.0,0.00013859,2]
[403297313,1769291370266,-500.0,0.00013859,2]
[403297314,1769291370291,-500.0,0.00013859,2]
[403297315,1769291370314,-500.0,0.00013859,2]
[403297316,1769291370337,-500.0,0.00013859,2]
[403297317,1769291370359,-500.0,0.00013859,2]
[403297318,1769291370382,-500.0,0.00013859,2]
[403297319,1769291370407,-600.00000001,0.00013859,2]
[403297320,1769291370726,-500.0,0.00013859,2]
[403297321,1769291370756,-500.0,0.00013859,2]
[403297322,1769291370778,-500.0,0.00013859,2]
[403297323,1769291370800,-500.0,0.00013859,2]
[403297324,1769291370823,-500.0,0.00013859,2]
[403297325,1769291370842,-2468.58663303,0.0001386,2]
[403297337,1769291432112,-238.34,0.000138,2]
[403297340,1769291432122,-1200.0,0.00013859,2]
[403297342,1769291432131,-414.59659535,0.00013859,2]
[403297343,1769291432141,-600.0,0.0001386,2]
[403297344,1769291432151,-20.78338513,0.0001386,2]
[403297345,1769291432166,-361.04264806,0.0001386,2]
[403297346,1769291432279,-8486.84733378,0.0001386,2]
[403297347,1769291432288,-167.31,0.00013879,2]
[403297348,1769291432298,-558.4800582,0.00013946,2]
[403297349,1769291432307,-762.8,0.00013955,2]
[403297350,1769291432316,-300.0,0.00014176,2]
[403297351,1769291432326,-300.0,0.00014176,2]
[403297352,1769291432335,-436.0,0.00014177,2]
[403297353,1769291432345,-475.0,0.00014186,2]
[403297354,1769291432355,-599.0,0.00014193,2]
[403297355,1769291432364,-513.0,0.0001424,2]
[403297357,1769291432373,-436.0,0.00014248,2]
[403297359,1769291432382,-166.66,0.00014271,2]
[403297361,1769291432391,-436.0,0.00014273,2]
[403297362,1769291432400,-1269.0,0.00014339,2]
[403297363,1769291432410,-534.0,0.0001436,2]
[403297364,1769291432420,-577.0,0.00014367,2]
[403297365,1769291432429,-436.0,0.00014397,2]
[403297367,1769291432439,-436.0,0.000144,2]
[403297369,1769291432448,-371.18,0.000144,2]
[403297371,1769291432457,-344.48981825,0.00014444,2]
[403297373,1769291432466,-741.0,0.00014447,2]
[403297375,1769291432475,-150.0,0.00014447,2]
[403297377,1769291432484,-436.0,0.00014457,2]
[403297379,1769291432493,-436.0,0.00014506,2]
[403297381,1769291432502,-436.0,0.00014518,2]
[403297383,1769291432512,-436.0,0.0001453,2]
[403297385,1769291432521,-436.0,0.00014539,2]
[403297386,1769291432530,-436.0,0.00014549,2]
[403297387,1769291432539,-436.0,0.00014564,2]
[403297388,1769291432549,-166.66,0.00014572,2]
[403297389,1769291432558,-741.0,0.00014634,2]
[403297390,1769291432568,-298.59070926,0.00014635,2]
[403297391,1769291432579,-442.40929074,0.00014635,2]
[403297392,1769291432588,-400.54,0.00014712,2]
[403297393,1769291432598,-436.0,0.0001474,2]
[403297394,1769291432608,-436.0,0.00014838,2]
[403297395,1769291432617,-436.0,0.00014859,2]
[403297396,1769291432627,-436.0,0.00014861,2]
[403297397,1769291432636,-166.66,0.00014872,2]
[403297398,1769291432645,-436.0,0.00014894,2]
[403297399,1769291432655,-436.0,0.00014899,2]
[403297400,1769291432664,-436.0,0.00014963,2]
[403297401,1769291432673,-436.0,0.00014989,2]
[403297402,1769291432683,-436.0,0.00014997,2]
[403297403,1769291432692,-436.0,0.00014998,2]
[403297404,1769291432701,-9657.61020871,0.00015,3]
[403297405,1769291432713,-38.22339209,0.00015,3]
[403297406,1769291432723,-266.38014877,0.00015009,2]
[403297407,1769291432734,-169.61985123,0.00015009,2]
[403297408,1769291432744,-95.37598518,0.00015026,2]
[403297409,1769291432851,-299.07108062,0.00015026,2]
[403297410,1769291432862,-41.5529342,0.00015026,2]
[403297411,1769291432872,-436.0,0.00015029,2]
[403297412,1769291432882,-400.92096243,0.00015062,2]
[403297413,1769291432893,-133.07903757,0.00015062,2]
[403297414,1769291432903,-436.0,0.0001508,2]
[403297415,1769291432913,-500.0,0.00015086,2]
[403297416,1769291432922,-417.19478733,0.00015086,2]
[403297417,1769291432931,-199.92629202,0.00015086,2]
[403297418,1769291432940,-243.07367541,0.00015086,2]
[403297419,1769291432952,-4.23991796,0.00015086,2]
[403297420,1769291432962,-320.76018617,0.00015086,2]
[403297421,1769291432974,-179.23981383,0.00015086,2]
[403297422,1769291432984,-339.04313322,0.00015086,2]
[403297423,1769291432994,-370.97010461,0.00015086,2]
[403297424,1769291433041,-129.02989539,0.00015086,2]
[403297425,1769291433051,-207.56853727,0.00015086,2]
[403297426,1769291433060,-286.2885,0.00015086,2]
[403297427,1769291433070,-85.3854186,0.00015088,2]
[403297428,1769291433140,-461.44401143,0.00015088,2]
[403297429,1769291438294,-2233.55206997,0.00015088,2]
[403297430,1769291438305,-1804.94258003,0.00015088,2]
[403297431,1769291438440,-200.0,0.00014841,2]
[403297432,1769291438449,-676.39761997,0.00015088,2]
[403297433,1769291438458,-182.94414284,0.00015088,2]
[403297434,1769291438467,-1209.67593138,0.00015088,2]
[403297435,1769291438476,-436.0,0.00015115,2]
[403297436,1769291438486,-280.21079314,0.00015119,2]
[403297437,1769291438495,-436.0,0.00015126,2]
[403297438,1769291438504,-600.0,0.00015132,2]
[403297439,1769291438513,-300.0,0.00015132,2]
[403297440,1769291438523,-336.32096552,0.00015132,2]
[403297441,1769291438532,-475.0,0.00015151,2]
[403297442,1769291438541,-436.0,0.00015162,2]
[403297443,1769291438550,-166.66,0.00015172,2]
[403297444,1769291438559,-151.0,0.00015179,2]
[403297445,1769291438569,-151.0,0.00015179,2]
[403297446,1769291438578,-151.0,0.00015179,2]
[403297448,1769291438588,-151.0,0.00015179,2]
[403297450,1769291438596,-151.0,0.00015179,2]
[403297452,1769291438605,-151.0,0.00015179,2]
[403297454,1769291438614,-151.0,0.00015179,2]
[403297456,1769291438623,-151.0,0.00015179,2]
[403297458,1769291438632,-151.0,0.00015179,2]
[403297460,1769291438640,-151.0,0.00015179,2]
[403297462,1769291438649,-151.0,0.00015179,2]
[403297464,1769291438658,-151.0,0.00015179,2]
[403297466,1769291438667,-151.0,0.00015179,2]
[403297468,1769291438676,-151.0,0.00015179,2]
[403297470,1769291438685,-151.0,0.00015179,2]
[403297472,1769291438694,-151.0,0.00015179,2]
[403297474,1769291438704,-151.0,0.00015179,2]
[403297476,1769291438713,-151.0,0.00015179,2]
[403297478,1769291438722,-151.0,0.00015179,2]
[403297480,1769291438732,-151.0,0.00015179,2]
[403297482,1769291438741,-1632.51793667,0.00015187,2]
[403297484,1769291438753,-20009.94326447,0.00015187,2]
[403297486,1769291438763,-170.27698083,0.00015188,2]
[403297488,1769291438772,-250.0,0.00015237,2]
[403297490,1769291438781,-500.0,0.00015245,2]
[403297493,1769291438790,-600.0,0.00015245,2]
[403297494,1769291438799,-195.0,0.00015245,2]
[403297496,1769291438809,-300.0,0.00015245,2]
[403297499,1769291438818,-1200.0,0.00015245,2]
[403297500,1769291438828,-250.0,0.00015246,2]
[403297503,1769291438837,-1569.70620969,0.00015246,2]
[403297505,1769291438847,-436.0,0.00015257,2]
[403297506,1769291438856,-436.0,0.00015267,2]
[403297508,1769291438865,-436.0,0.00015274,2]
[403297510,1769291438875,-436.0,0.00015278,2]
[403297512,1769291438884,-500.0,0.00015283,2]
[403297514,1769291438893,-1646.6257,0.00015288,2]
[403297516,1769291438903,-436.0,0.00015293,2]
[403297519,1769291438912,-436.0,0.00015329,2]
[403297520,1769291438921,-436.0,0.00015357,2]
[403297522,1769291438931,-500.0,0.00015387,2]
[403297524,1769291438940,-238.79765204,0.00015387,2]
[403297526,1769291438949,-872.0,0.00015388,2]
[403297528,1769291438959,-1209.67593134,0.000154,2]
[403297530,1769291438968,-436.0,0.00015413,2]
[403297532,1769291438977,-436.0,0.00015427,2]
[403297535,1769291438987,-436.0,0.00015452,2]
[403297536,1769291438996,-436.0,0.00015464,2]
[403297538,1769291439005,-166.66,0.00015473,2]
[403297540,1769291439015,-436.0,0.0001551,2]
[403297543,1769291439024,-420.0,0.00015528,2]
[403297545,1769291439034,-436.0,0.00015542,2]
[403297547,1769291439043,-255.0,0.00015574,2]
[403297548,1769291439051,-151.0,0.00015575,2]
[403297550,1769291439061,-436.0,0.00015576,2]
[403297552,1769291439070,-475.0,0.00015581,2]
[403297554,1769291439079,-1371.95,0.00015583,2]
[403297556,1769291439089,-151.0,0.0001561,2]
[403297558,1769291439101,-151.0,0.0001561,2]
[403297560,1769291439111,-167.31,0.00015614,2]
[403297563,1769291439120,-436.0,0.00015618,2]
[403297564,1769291439129,-170.27698082,0.0001564,2]
[403297566,1769291439139,-1209.67593134,0.00015713,2]
[403297568,1769291439148,-436.0,0.00015754,2]
[403297571,1769291439157,-436.0,0.00015757,2]
[403297572,1769291439168,-436.0,0.00015773,2]
[403297574,1769291439178,-166.66,0.00015773,2]
[403297576,1769291439187,-436.0,0.00015778,2]
[403297613,1769291439500,-436.0,0.00015783,2]
[403297615,1769291439510,-1500.0,0.00015804,2]
[403297617,1769291439519,-152.0,0.00015809,3]
[403297619,1769291439529,-436.0,0.0001582,2]
[403297621,1769291439538,-436.0,0.00015821,2]
[403297623,1769291439548,-436.0,0.00015826,2]
[403297625,1769291439558,-436.0,0.00015881,2]
[403297627,1769291439567,-436.0,0.00015885,2]
[403297629,1769291439577,-436.0,0.00015896,2]
[403297631,1769291439586,-475.0,0.00015904,2]
[403297633,1769291439595,-932.35606998,0.00015909,2]
[403297635,1769291439605,-436.0,0.0001594,2]
[403297637,1769291439614,-436.0,0.00015965,2]
[403297639,1769291439623,-475.0,0.00016019,2]
[403297641,1769291439634,-1209.67593134,0.00016025,2]
[403297643,1769291439643,-436.0,0.00016077,2]
[403297645,1769291439653,-170.27698082,0.00016092,2]
[403297647,1769291439662,-7603.8462881,0.000161,2]
[403297699,1769291440126,-433.07166844,0.000161,2]
[403297704,1769291440170,-352.31204346,0.000161,2]
[403297706,1769291440179,-297.68795654,0.00016126,2]
[403297709,1769291440191,-138.31204346,0.00016126,2]
[403297711,1769291440200,-436.0,0.00016255,2]
[403297713,1769291440209,-5.10115822,0.00016291,2]
[403297810,1769291441283,-151.0,0.00015575,2]
[403297812,1769291441292,-430.89884178,0.00016291,2]
[403297814,1769291441301,-436.0,0.00016298,2]
[403297816,1769291441310,-436.0,0.00016336,2]
[403297818,1769291441319,-1209.67593134,0.00016338,2]
[403297820,1769291441329,-1898.32153152,0.00016338,2]
[403297822,1769291441338,-200.0,0.00016356,2]
[403297824,1769291441347,-534.0,0.00016369,2]
[403297826,1769291441356,-436.0,0.00016428,2]
[403297828,1769291441365,-500.0,0.00016438,2]
[403297830,1769291441374,-500.0,0.00016438,2]
[403297832,1769291441383,-500.0,0.00016438,2]
[403297834,1769291441391,-500.0,0.00016438,2]
[403297836,1769291441400,-500.0,0.00016438,2]
[403297838,1769291441408,-500.0,0.00016438,2]
[403297840,1769291441417,-500.0,0.00016438,2]
[403297842,1769291441426,-500.0,0.00016438,2]
[403297844,1769291441435,-500.0,0.00016438,2]
[403297846,1769291441444,-500.0,0.00016438,2]
[403297848,1769291441453,-500.0,0.00016438,2]
[403297850,1769291441461,-500.0,0.00016438,2]
[403297852,1769291441470,-500.0,0.00016438,2]
[403297853,1769291441479,-500.0,0.00016438,2]
[403297856,1769291441488,-500.0,0.00016438,2]
[403297858,1769291441496,-500.0,0.00016438,2]
[403297859,1769291441505,-500.0,0.00016438,2]
[403297862,1769291441515,-500.0,0.00016438,2]
[403297864,1769291441523,-500.0,0.00016438,2]
[403297865,1769291441532,-500.0,0.00016438,2]
[403297868,1769291441541,-500.0,0.00016438,2]
[403297869,1769291441551,-500.0,0.00016438,2]
[403297871,1769291441559,-500.0,0.00016438,2]
[403297873,1769291441569,-500.0,0.00016438,2]
[403297875,1769291441578,-500.0,0.00016438,2]
[403297877,1769291441587,-500.0,0.00016438,2]
[403297879,1769291441595,-500.0,0.00016438,2]
[403297881,1769291441604,-500.0,0.00016438,2]
[403297883,1769291441613,-500.0,0.00016438,2]
[403297885,1769291441622,-500.0,0.00016438,2]
[403297887,1769291441631,-168.10369536,0.00016438,2]
[403297936,1769291442057,-331.89630464,0.00016438,2]
[403297938,1769291442066,-500.0,0.00016438,2]
[403297940,1769291442075,-500.0,0.00016438,2]
[403297942,1769291442084,-500.0,0.00016438,2]
[403297944,1769291442097,-500.0,0.00016438,2]
[403297946,1769291442106,-500.0,0.00016438,2]
[403297948,1769291442115,-396.18585675,0.00016438,2]
[403297950,1769291442126,-103.81414325,0.00016438,2]
[403297952,1769291442137,-500.0,0.00016438,2]
[403297954,1769291442146,-500.0,0.00016438,2]
[403297956,1769291442155,-500.0,0.00016438,2]
[403297958,1769291442166,-500.0,0.00016438,2]
[403297960,1769291442175,-500.0,0.00016438,2]
[403297962,1769291442184,-500.0,0.00016438,2]
[403297964,1769291442193,-500.0,0.00016438,2]
[403297966,1769291442203,-493.09561874,0.00016438,2]
[403297968,1769291442212,-510.15615014,0.00016438,2]
[403297970,1769291442221,-510.15615014,0.00016438,2]
[403297972,1769291442230,-510.15615014,0.00016438,2]
[403297974,1769291442239,-510.15615014,0.00016438,2]
[403297976,1769291442249,-510.15615014,0.00016438,2]
[403297978,1769291442258,-510.15615014,0.00016438,2]
[403297980,1769291442267,-510.15615014,0.00016438,2]
[403297982,1769291442277,-510.15615014,0.00016438,2]
[403297984,1769291442286,-510.15615014,0.00016438,2]